Cogmind - Beta 17 @@@ ROGUE MODE // 2026.07.01 @ 17:25:05 Player: Dull Result: Destroyed by S-10 Pest with Light Assault Rifle Performance ------------- Evolutions (0) 0 Regions Visited (2) 400 Robots Destroyed (45) 225 Value Destroyed (1115) 1115 Prototype IDs (2) 40 Alien Tech Used (0) 0 Bonus (0) 0 TOTAL SCORE: 1780 Bonus ------- None Cogmind --------- Core Integrity 0/250 Matter 249/300 Energy 250/250 System Corruption 0% Temperature Cool (0) Movement Treading (340) Ox2 Location -10/Subcaves Parts ------- > --- POWER (1) -------- Ion Engine > --- PROPULSION (2) --- Light Treads Spiked Treads > --- UTILITY (2) ------ Huge Storage Unit Makeshift Light Armor Plating > --- WEAPON (2) ------- Heavy Assault Rifle Barrage Gun > --- INVENTORY (25) --- Ion Engine Arachnoskeleton Wheel Large Storage Unit High-capacity Storage Unit Medium Matter Pod (100) Hardened Light Armor Plating Makeshift Light Armor Plating Scrap Shield Makeshift System Shield Heavy Assault Rifle Barrage Gun Improved Light Cannon Improved Light Cannon Improved Light Cannon Improved Light Cannon Rocket Launcher Rocket Launcher Rocket Launcher Rocket Launcher Dirty Datajack (20) Mining Claw Peak State ------------ > --- POWER ------------ Ion Engine > --- PROPULSION ------- Light Treads Spiked Treads > --- UTILITY ---------- Huge Storage Unit Makeshift Light Armor Plating > --- WEAPON ----------- Heavy Assault Rifle Barrage Gun > --- INVENTORY -------- Ion Engine Arachnoskeleton Wheel Large Storage Unit High-capacity Storage Unit Medium Matter Pod Hardened Light Armor Plating Makeshift Light Armor Plating Scrap Shield Makeshift System Shield Heavy Assault Rifle Barrage Gun Improved Light Cannon Improved Light Cannon Improved Light Cannon Improved Light Cannon Rocket Launcher Rocket Launcher Rocket Launcher Rocket Launcher Dirty Datajack Mining Claw [Rating: 20] Favorites ----------- Power Ion Engine Engine Ion Engine Propulsion Light Treads Treads Light Treads Leg Aluminum Leg Utility Huge Storage Unit Storage Huge Storage Unit Protection Hardened Light Armor Plating Weapon Heavy Assault Rifle Energy Gun Medium Laser Ballistic Gun Heavy Assault Rifle Launcher Rocket Launcher Slashing Weapon Mining Claw Build | -11 -10 -10 ------- Run | Yrd Mat Sub Slots Evolved . | . . . Power . | . . . Propulsion . | . . . Utility . | . . . Weapon . | . . . Parts Attached 31 | . 17 14 Power 3 | . 2 1 Engine 3 | . 2 1 Core . | . . . Reactor . | . . . Propulsion 7 | . 2 5 Treads 7 | . 2 5 Leg . | . . . Wheel . | . . . Hover . | . . . Flight . | . . . Utility 10 | . 6 4 Device . | . . . Storage 4 | . 4 . Processor . | . . . Hackware . | . . . Protection 6 | . 2 4 Artifact . | . . . Weapon 11 | . 7 4 Energy Gun . | . . . Energy Cannon . | . . . Ballistic Gun 6 | . 4 2 Ballistic Cannon . | . . . Launcher 4 | . 3 1 Special Weapon . | . . . Impact Weapon . | . . . Slashing Weapon 1 | . . 1 Piercing Weapon . | . . . Special Melee Weapon . | . . . Unidentified Prototypes . | . . . Parts Lost 9 | . . 9 Power 1 | . . 1 Propulsion 4 | . . 4 Utility 3 | . . 3 Weapon 1 | . . 1 Highest Loss Streak 3 | . . 3 To Critical Strikes . | . . . Average Backups 19 | . 17 21 Power 1 | . 1 1 Propulsion 3 | . 4 2 Utility 5 | . 4 6 Weapon 9 | . 7 10 Tool/Special . | . . . Unused Backups 24 | . 9 15 Power 3 | . 2 1 Propulsion 5 | . 3 2 Utility 7 | . 1 6 Weapon 8 | . 3 5 Tool/Special 1 | . . 1 Average Slot Usage (%) 99 | . 99 99 Engine 13 | . 13 13 Treads 26 | . 23 27 Leg 1 | . 4 . Storage 14 | . 16 14 Protection 13 | . 11 14 Ballistic Gun 26 | . 26 26 Peak Build Rating 20 | . 12 20 Average Rating 12 | . 10 14 On Entrance 8 | 6 6 12 Avg Prop Armor Cover (%) . | . . . Naked Turns . | . . . Heaviest Build 97 | 11 95 97 Greatest Support 40 | 20 40 40 Greatest Overweight (x) 2 | . 2 2 Average Overweight (x) 1 | . 1 2 Largest Inventory Capacity 25 | . 25 25 Average Capacity 23 | . 20 25 Most Carried 25 | . 25 25 Average Carried 20 | . 17 22 Final Capacity 25 | 8 25 25 Final Carried 25 | 6 25 25 Class Distribution -------------------- 100% | Mutant Dominant Class ---------------- Mutant | -10/Materials Mutant | -10/Subcaves Resources | -11 -10 -10 ----------- Run | Yrd Mat Sub Matter Collected 1424 | 189 499 736 Remotely . | . . . Salvage Created 1345 | . 582 763 Parts 83 | . 34 49 Haulers Intercepted 2 | . 2 . Recyclers Shooed 2 | . 2 . Parts Field Recycled . | . . . Retrieved Matter . | . . . Parts Self-Destructed 2 | . . 2 Prevented . | . . . Parts Restored . | . . . Kills | -11 -10 -10 ------- Run | Yrd Mat Sub Combat Hostiles Destroyed 35 | . 14 21 Guns 26 | . 8 18 AOE 9 | . 6 3 Classes Destroyed 9 | . 7 2 Worker 2 | . 2 . Tunneler 1 | . 1 . Hauler 2 | . 2 . Recycler 2 | . 2 . Watcher 3 | . 3 . Swarmer 12 | . 9 3 Grunt 6 | . 5 1 Sentry 1 | . . 1 Subdweller 16 | . . 16 Best Kill Streak 4 | . 4 3 Combat Bots Only 3 | . 3 3 Max Kills in Single Turn 3 | . 3 1 Gunslinging . | . . . Exploded 2 | . 2 1 Melee . | . . . Uniques/NPCs Destroyed . | . . . Combat | -11 -10 -10 -------- Run | Yrd Mat Sub Hostile Shots Fired 187 | . 63 124 Missed 50 | . 17 33 Hits 137 | . 46 91 Projectile 137 | . 46 91 Critical Strikes 2 | . 2 . Damage Taken 2383 | . 496 1887 Core 251 | . 93 158 Absorbed by Shields . | . . . Core Remaining (%) 100 | 100 . . Volleys Fired 124 | . 58 66 Largest 2 | . 2 2 Hottest 70 | . 70 51 Shots Fired 231 | . 106 125 Gun 216 | . 98 118 Cannon . | . . . Launcher 15 | . 8 7 Special . | . . . Kinetic 196 | . 78 118 Thermal 20 | . 20 . Explosive 15 | . 8 7 Electromagnetic . | . . . Robot Hit Streak 24 | . 15 24 Robot Miss Streak 5 | . 3 5 Penetration Max . | . . . Secondary Targets 5 | . . 5 Max Gunslinging Chain 1 | . . 1 Shots Hit Robots 157 | . 65 92 Core Hits 72 | . 35 37 Critical Kills . | . . . Critical Parts Destroyed . | . . . Critical Strikes . | . . . Melee Attacks 14 | . . 14 Impact . | . . . Slashing 14 | . . 14 Piercing . | . . . Sneak Attacks . | . . . Combat Hostiles . | . . . Follow-up Attacks . | . . . Damage Inflicted 3069 | . 1346 1723 Guns 2178 | . 850 1328 Cannons . | . . . Explosions 891 | . 496 395 Melee . | . . . Ramming . | . . . Kinetic 2000 | . 672 1328 Thermal 178 | . 178 . Explosive 891 | . 496 395 Electromagnetic . | . . . Impact . | . . . Slashing . | . . . Piercing . | . . . Highest Corruption . | . . . Average Corruption . | . . . Corruption Purged . | . . . Corruption Blocked . | . . . Overload Shots . | . . . Overflow Damage 46 | . 46 . Projectiles . | . . . Explosions 46 | . 46 . Melee . | . . . Knockbacks . | . . . Impact . | . . . Kinetic . | . . . Secondary . | . . . Self-Inflicted Damage 32 | . . 32 Shots 1 | . . 1 Rammed . | . . . Targets Rammed . | . . . Kicked . | . . . Crushed . | . . . Highest Temperature 380 | . 380 . Average Temperature 143 | . 143 . Received Heat Transfer 636 | . 213 423 Effects 2 | . 2 . Energy Bleed 1 | . 1 . Interference 1 | . 1 . Siege Activations . | . . . Martial Activations . | . . . Shielding Activations . | . . . Robots Disrupted . | . . . Combat Hostiles . | . . . Robots Corrupted . | . . . Combat Hostiles . | . . . Parts Fried . | . . . Impact Corruptions . | . . . Robots Melted . | . . . Combat Hostiles . | . . . Parts Melted 3 | . 1 2 Heat Transferred 518 | . 518 . Parts Sabotaged . | . . . Parts Stolen . | . . . Parts Stripped . | . . . Power Chain Reactions . | . . . Alert | -11 -10 -10 ------- Run | Yrd Mat Sub Maximum Alert Level 1 | . 1 . Low Security (%) 97 | . 97 . Level 1 2 | . 2 . Level 2 . | . . . Level 3 . | . . . Level 4 . | . . . Level 5 . | . . . High Security . | . . . Max Security . | . . . Peak Influence 209 | . 209 . Initial . | . . . Average 57 | . 57 . Influence Increases 693 | . 573 120 Destroy 0b10 Robot/C 380 | . 280 100 Destroy 0b10 Robot/NC 50 | . 50 . Destroy Leader 90 | . 70 20 Successful Hack 11 | . 11 . Disable Machine 30 | . 30 . Destroy Structure 87 | . 87 . Lose Combat Pursuer 45 | . 45 . Influence Decreases 643 | . 566 77 Entered New Map 4 | . . 4 Time Decay 467 | . 404 63 Lost Part 10 | . . 10 Purge Threat 162 | . 162 . Squads Dispatched 2 | . 2 . Investigation . | . . . Extermination . | . . . Reinforcement 2 | . 2 . Assault . | . . . Garrison . | . . . Intercept . | . . . Searches Triggered . | . . . Construction Impeded . | . . . Haulers Reinforced . | . . . Active Scanning Responses . | . . . Cargo Convoy Interrupts . | . . . Stealth | -11 -10 -10 --------- Run | Yrd Mat Sub Distress Signals 1 | . 1 . Communications Jammed . | . . . Distress Signals . | . . . Times Spotted 46 | . 25 21 Peak Tracking Total 5 | . 5 3 Tactical Retreats 1 | . 1 . Traps | -11 -10 -10 ------- Run | Yrd Mat Sub Traps Triggered 1 | . 1 . Indirectly . | . . . Trap Hack Attempts . | . . . Triggered . | . . . Disarmed . | . . . Reprogrammed . | . . . Reused . | . . . Traps Extracted . | . . . Installed . | . . . Triggered . | . . . Machines | -11 -10 -10 ---------- Run | Yrd Mat Sub Machines Disabled 2 | . 2 . Max in Single Turn 2 | . 2 . Machines Repaired . | . . . Machines Dismantled . | . . . Machines Sabotaged . | . . . Overloaded Fab Kills . | . . . Hacking | -11 -10 -10 --------- Run | Yrd Mat Sub Machines Accessed 8 | . 8 . Terminals 6 | . 6 . Fabricators . | . . . Repair Stations 1 | . 1 . Recycling Units 1 | . 1 . Scanalyzers . | . . . Garrison Access . | . . . Total Hacks 20 | . 20 . Successful 10 | . 10 . Failed 9 | . 9 . Catastrophic 1 | . 1 . Database Lockouts 1 | . 1 . Manual 7 | . 7 . Terminals 16 | . 16 . Fabricators . | . . . Repair Stations 1 | . 1 . Recycling Units 3 | . 3 . Scanalyzers . | . . . Garrison Access . | . . . Terminal Hacks 7 | . 7 . Robot Analysis 1 | . 1 . Prototype ID Bank 1 | . 1 . Unreport Threat 2 | . 2 . Locate Traps 3 | . 3 . Fabricator Hacks . | . . . Repair Station Hacks . | . . . Recycling Unit Hacks 2 | . 2 . Retrieve Matter 1 | . 1 . Retrieve Components 1 | . 1 . Scanalyzer . | . . . Garrison Access Hacks . | . . . Unauthorized Hacks 1 | . 1 . Terminals 1 | . 1 . Botnet 1 | . 1 . Fabricators . | . . . Repair Stations . | . . . Recycling Units . | . . . Scanalyzers . | . . . Garrison Access . | . . . Data Cores Recovered . | . . . Used . | . . . Hacking Detections 6 | . 6 . Full Trace Events . | . . . Feedback Events . | . . . Feedback Blocked . | . . . Robot Schematics Acquired . | . . . Robots Built . | . . . Authchips . | . . . Time . | . . . Total Robot Build Rating . | . . . Part Schematics Acquired . | . . . Parts Built . | . . . Authchips . | . . . Time . | . . . Total Part Build Rating . | . . . Part Studies Acquired . | . . . Parts Repaired . | . . . Time . | . . . Parts Recycled . | . . . Recycled Matter . | . . . Retrieved Matter . | . . . Retrieved Components 1 | . 1 . Parts Scanalyzed . | . . . Part Schematics Acquired . | . . . Parts Damaged . | . . . Bothacking | -11 -10 -10 ------------ Run | Yrd Mat Sub Used RIF Installer . | . . . Robots Hacked . | . . . Non-combat . | . . . Combat . | . . . Robot Hacks Applied . | . . . Relay Couplers Released . | . . . Fabnet Peak Effective % . | . . . Robots Rewired . | . . . Allies Hacked . | . . . Hacks Repelled . | . . . Allies | -11 -10 -10 -------- Run | Yrd Mat Sub Total Allies . | . . . Largest Group . | . . . Highest-Rated Group . | . . . Highest-Rated Ally . | . . . Total Orders . | . . . Ally Attacks . | . . . Total Damage . | . . . Kills . | . . . Allies Corrupted . | . . . Allies Melted . | . . . Intel | -11 -10 -10 ------- Run | Yrd Mat Sub Active Infowar (turns) . | . . . Robot Analysis Total 1 | . 1 . Derelict Logs Recovered 2 | . . 2 Drone Launches . | . . . Drone Recoveries . | . . . Exploration | -11 -10 -10 ------------- Run | Yrd Mat Sub Turns Passed 6419 | . 2469 3950 Spaces Moved 1968 | 1 861 1106 Core . | . . . Treads 1782 | . 676 1106 Legs 186 | 1 185 . Wheels . | . . . Hover . | . . . Flight . | . . . Fastest Speed 120 | 120 120 320 Average Speed 286 | 120 243 320 Slowest Speed 340 | 120 320 340 Overloaded Moves . | . . . Propulsion Burnouts . | . . . Robots Hopped . | . . . Potential Cave-ins . | . . . Cave-ins Triggered . | . . . Exploration Rate (%) 58 | 2 99 74 Regions Visited 2 Branch Regions 1 Pre-discovered Areas . | . . . Known Exits Taken . | . . . Unknown Exits Taken 2 | 1 1 . Scrap Searched 3 | . . 3 Spaces Dug 46 | . 46 . Terrain Destroyed 132 | . 103 29 Melee . | . . . Projectile . | . . . AOE 132 | . 103 29 Terrain Rammed . | . . . Walls Destroyed . | . . . Machines Disabled . | . . . Actions | -11 -10 -10 --------- Run | Yrd Mat Sub Total 2487 | . 1130 1357 Wait 282 | . 148 134 Move 1966 | . 860 1106 Hop . | . . . Pick Up 32 | . 26 6 Fast Attach 7 | . 7 . Attach 11 | . 2 9 Detach 1 | . 1 . Swap 32 | . 13 19 Drop 18 | . 15 3 Fire 124 | . 58 66 Melee 14 | . . 14 Ram . | . . . Kick . | . . . Crush . | . . . Escape Stasis . | . . . Rewire . | . . . Trap . | . . . Miscellaneous . | . . . Route ------- -11/Scrapyard -10/Materials (discovered 5 exits: [*Mat x3] / [*Min] / [*Sub]) -10/Subcaves (discovered 1 exit: [*Mat]) History --------- Turn | Location | Event 1 | -11/Scrapyard | Discovered new exit (range 0) 1 | -11/Scrapyard | Entered Materials 110 | -10/Materials | Discovered new exit (range 14) 313 | -10/Materials | Build established: Mutant 1357 | -10/Materials | Discovered new exit (range 5) 1975 | -10/Materials | Discovered new exit (range 11) 2098 | -10/Materials | Discovered new exit (range 9) 2140 | -10/Materials | Central database locked down 2258 | -10/Materials | Discovered new exit (range 7) 2470 | -10/Materials | Entered Subcaves 2471 | -10/Subcaves | Approached by a straggling Scientist 2882 | -10/Subcaves | Shifting Twisted Machinery released Shrapnel Trap 2906 | -10/Subcaves | Shifting Twisted Machinery released Mak. System Shield 3309 | -10/Subcaves | Lost 3 parts (2n1w) 3441 | -10/Subcaves | Lost 3 parts (1p1n1u) 4233 | -10/Subcaves | Discovered new exit (range 5) 4241 | -10/Subcaves | Shifting Twisted Machinery released Sub. Shrapnel Launcher 4569 | -10/Subcaves | Learned 4 Materials zone layouts 4764 | -10/Subcaves | Core integrity fell below 50% 4802 | -10/Subcaves | Found Prototype Leg 5074 | -10/Subcaves | Core integrity fell below 20% 5941 | -10/Subcaves | Shifting Twisted Machinery released Barrage Gun 5953 | -10/Subcaves | Shifting Twisted Machinery released Battle Cannon 6420 | -10/Subcaves | Destroyed by S-10 Pest with Light Assault Rifle Last Messages --------------- 06150_ Found Sub. Machine Gun. 06150_ Found Piercing Trap. 06150_ Found 54 Matter. 06151_ Acquired 21 matter. 06159_ Searching scrap... 06159_ Found Shrapnel Trap. 06159_ Found Mak. Light Armor Plating. 06159_ Found 63 Matter. 06166_ Acquired Mak. Light Armor Plating. 06170_ Searching scrap... 06170_ Found Mak. Light Armor Plating. 06170_ Found Piercing Trap. 06170_ Found 30 Matter. 06176_ Dropped Hrd. Light Armor Plating. 06182_ Subatomizers dissect the Sub. Optics. 06357_ Dropped Hvy. Assault Rifle. 06378_ Dropped Lgt. Treads. 06413_ S-10 Pest destroyed. 06419_ Switching to secondary target: S-10 Pest. Map ----- +----------------------------------------------------+ | ?????????????????????????????????????????????????? | | ?????????????????????????????????????????????????? | | ?????????????????????????????????????????????????? | | ?????????????????????????????????????????????????? | | ?????????????????????????????????????????????????? | | ?????????????????????????????????????????????????? | | ?????????????????????????????????????????????????? | | ?????????????????????????????????????????????????? | | ?????????????????????????????????????????????????? | | ?????????????????????????????????????????????????? | | ?????????????????????????????????????????????????? | | ?????????????????????????????????????????????????? | | ?????????????????????????????????????????????????? | | ???????????????? ????????????????????????????????? | | ??????????????# ?????##????????????????????????? | | ???????? ???? ????# ????????????????????????? | | ???????# ???# ??## ??????????##????????????? | | ???????# ???# #?# ????????? #????????????? | | ???????# ???# ### #??????? ??????????????? | | ??????## ### s ## ##????? ???????????????? | | ??????# = ###?? ????????????????? | | ??????? % ## ??????????????????? | | ???????? ] [ = ???????????????????? | | ???????? ##% ????????????????????? | | ????????? #?# #?????????????????????? | | ?????????# #??# @#??????????????????????? | | ?????????# & ##?# #??????????????????????? | | ????????## [% #?# ##?????????????????????? | | ???????## #??## #?????????????????????? | | ###????# #????# #?????????????????????? | | ###??# ##????## ##?????????????????????? | | ##### # ##?????## #?????????????????????? | | ## # # ####??????# #####?????????????????? | | ## ###???????# # # #?????????????????? | | ### # # ##??????# ##?????????????????? | | ########## #??????## = #?????????????????? | | #??????# ##??????# ## # ##?????????????????? | | ###????### #???????##?### #?????????????????? | | #??????# ##?######?#### ##?????????????????? | | ####??## ### ### [ #??????????????????? | | ! [ #?## ##??????????????????? | | | #### # # ## ###???????????????????? | | # ## #?# ########## ##????????????????????? | | ##### # # # # #????????????????????? | | #??# #????????????????????? | | ###??# # # #????????????????????? | | ?????## ######## #????????????????????? | | ??????##### ####??????## ##????????????????????? | | ??????????####??????????####?????????????????????? | | ?????????????????????????????????????????????????? | +----------------------------------------------------+ Best States ------------- Heat Dissipation 25 Energy Generation 10 Energy Capacity 375 Matter Stores 397 Matter Capacity 400 Sight Range 16 Terrain Scan Density 10 Armor Coverage 150 Evasion (%) 55 Recoil Reduction 2 Item Schematics ----------------- None Robot Schematics ------------------ None Fabricated ------------ Nothing Repaired ---------- Nothing Studied --------- None Alien Tech Used ----------------- None Achievements -------------- Resistances Are Futile Challenges ------------ None Game ------ Seed RelayTransportCharger Manual? 0 Play Time 00:24:34 Cumulative 155.7 hours Start 2026.07.01 @ 17:00:21 End 2026.07.01 @ 17:25:05 Sessions 1 Manual Loads 0 Difficulty Rogue Special Mode None Game No. 214 Rogue 214 Adventurer 0 Explorer 0 Win Type - Total 1 Types 1/0/0/0/0/0/0/0/0/0 Lore% 51 Gallery% 53 Achievement% 31 Wizard Run 0 Options --------- Layout 1 ASCII 0 Keyboard 0 Movement Mouse Keybinds 1 Fullscreen 1 Font 24/Smallcaps Map View 50x35 Zoom Use 0% Tactical HUD 1 Map Filters NONE Filters NONE Steam 1 RUN: 3d0cd8c3-fc84-4993-9ed8-bf11be5b60c7